Cogmind - Beta 12 @@@ ROGUE MODE // 2023.05.22 @ 20:25:48 Player: Pakabot Result: Destroyed by Y-45 Defender with Heavy Assault Rifle Performance ------------- Evolutions (2) 1000 Regions Visited (4) 800 Robots Destroyed (19) 95 Value Destroyed (418) 418 Prototype IDs (0) 0 Alien Tech Used (0) 0 Bonus (700) 700 TOTAL SCORE: 3013 Bonus ------- Entered Garrisons 200 Used RIF Installer 500 Cogmind --------- Core Integrity 0/550 Matter 64/300 Energy 100/100 System Corruption 9% Temperature Cool (6) Movement Core (200) Ox3 Location -8/Garrison Parts ------- > --- POWER (2) -------- (None) > --- PROPULSION (2) --- (None) > --- UTILITY (5) ------ Small Storage Unit > --- WEAPON (2) ------- Rocket Launcher Maul > --- INVENTORY (8) ---- Cryofiber Web Melee Analysis Suite Grenade Launcher Mining Laser Peak State ------------ > --- POWER ------------ Ion Engine Light Nuclear Core > --- PROPULSION ------- Light Treads Light Treads > --- UTILITY ---------- Small Storage Unit Heavy Armor Plating Heavy Armor Plating > --- WEAPON ----------- Flak Cannon Flak Cannon > --- INVENTORY -------- Melee Analysis Suite Flak Cannon Flak Cannon Grenade Launcher Mining Laser [Rating: 26] Favorites ----------- Power Ion Engine Engine Ion Engine Power Core Light Nuclear Core Propulsion Light Treads Treads Light Treads Utility Small Storage Unit Storage Small Storage Unit Protection Heavy Armor Plating Weapon Flak Cannon Energy Gun EM Pulse Gun Ballistic Cannon Flak Cannon Launcher Rocket Launcher Impact Weapon Maul Build | -11 -10 -9 -8 -8 ------- Run | Jun Mat Mat Mat Gar Slots Evolved 4 | . . 2 2 . Power 1 | . . . 1 . Propulsion . | . . . . . Utility 3 | . . 2 1 . Weapon . | . . . . . Parts Attached 18 | 4 2 5 2 5 Power 3 | 1 . 1 1 . Engine 2 | 1 . 1 . . Core 1 | . . . 1 . Reactor . | . . . . . Propulsion 2 | 2 . . . . Treads 2 | 2 . . . . Leg . | . . . . . Wheel . | . . . . . Hover . | . . . . . Flight . | . . . . . Utility 4 | 1 . 2 1 . Device . | . . . . . Storage 2 | 1 . . 1 . Processor . | . . . . . Hackware . | . . . . . Protection 2 | . . 2 . . Artifact . | . . . . . Weapon 9 | . 2 2 . 5 Energy Gun 2 | . 2 . . . Energy Cannon . | . . . . . Ballistic Gun . | . . . . . Ballistic Cannon 5 | . . 2 . 3 Launcher 1 | . . . . 1 Special Weapon . | . . . . . Impact Weapon 1 | . . . . 1 Slashing Weapon . | . . . . . Piercing Weapon . | . . . . . Special Melee Weapon . | . . . . . Unidentified Prototypes . | . . . . . Corrupted Parts 1 | . . . . 1 System Corruption 9 | . . . . 9 Parts Lost 7 | . . . . 7 Power 2 | . . . . 2 Propulsion 2 | . . . . 2 Utility 2 | . . . . 2 Weapon 1 | . . . . 1 Highest Loss Streak 6 | . . . . 6 To Critical Strikes . | . . . . . Average Slot Usage (%) 67 | . 85 66 79 47 Engine 8 | . 14 11 9 4 Core 3 | . . . 7 4 Treads 17 | . 28 22 18 7 Storage 10 | . 14 10 9 9 Protection 7 | . . 1 18 7 Energy Gun 9 | . 28 20 . . Ballistic Cannon 8 | . . . 18 9 Impact Weapon 1 | . . . . 4 Naked Turns . | . . . . . Heaviest Build 57 | 10 14 47 57 57 Greatest Support 40 | 40 40 40 40 40 Greatest Overweight (x) 8 | . . 1 1 8 Average Overweight (x) . | . . . 1 2 Largest Inventory Capacity 8 | 8 8 8 8 8 Average Capacity 7 | 7 8 7 8 8 Most Carried 8 | 4 4 8 8 8 Average Carried 4 | 3 2 4 6 6 Final Capacity 8 | 8 8 5 8 8 Final Carried 8 | 4 4 5 8 4 Class Distribution -------------------- 100% | Mutant Dominant Class ---------------- Mutant | -10/Materials Mutant | -9/Materials Mutant | -8/Materials Mutant | -8/Garrison Resources | -11 -10 -9 -8 -8 ----------- Run | Jun Mat Mat Mat Gar Matter Collected 481 | 217 . 18 119 127 Remotely . | . . . . . Salvage Created 329 | . 28 42 143 116 Parts 29 | . 3 12 9 5 Haulers Intercepted . | . . . . . Recyclers Shooed 1 | . . . 1 . Parts Field Recycled . | . . . . . Retrieved Matter . | . . . . . Parts Self-Destructed . | . . . . . Prevented . | . . . . . Kills | -11 -10 -9 -8 -8 ------- Run | Jun Mat Mat Mat Gar Combat Hostiles Destroyed 24 | . . 4 7 13 Melee 1 | . . . . 1 Guns 1 | . . 1 . . Cannons 15 | . . . 6 9 AOE 6 | . . 3 1 2 Classes Destroyed 6 | . 1 2 2 1 Builder 2 | . . 2 . . Watcher 1 | . 1 . . . Swarmer 10 | . . 4 3 3 Grunt 1 | . . . 1 . Sentry 5 | . . . 3 2 Assembled 8 | . . . . 8 Best Kill Streak 6 | . 1 5 3 6 Combat Bots Only 6 | . . 4 3 6 Max Kills in Single Turn 3 | . 1 3 2 1 Gunslinging . | . . . . . Exploded 3 | . . 3 1 1 Melee 1 | . . . . 1 Uniques/NPCs Destroyed . | . . . . . Combat | -11 -10 -9 -8 -8 -------- Run | Jun Mat Mat Mat Gar Damage Taken 2336 | . . 96 444 1796 Core 578 | . . 19 22 537 Absorbed by Shields 17 | . . . . 17 Core Remaining (%) 98 | 100 100 95 . . Volleys Fired 40 | . 1 6 14 19 Largest 2 | . 2 2 2 2 Hottest 88 | . 80 80 88 88 Shots Fired 76 | . 2 12 28 34 Gun 14 | . 2 12 . . Cannon 58 | . . . 28 30 Launcher 4 | . . . . 4 Special . | . . . . . Kinetic 58 | . . . 28 30 Thermal . | . . . . . Explosive 4 | . . . . 4 Electromagnetic 14 | . 2 12 . . Robot Hit Streak 8 | . 1 3 8 4 Robot Miss Streak 14 | . . 3 7 14 Penetration Max . | . . . . . Secondary Targets . | . . . . . Shots Hit Robots 64 | . 1 6 27 30 Core Hits 61 | . 1 5 23 32 Critical Kills . | . . . . . Critical Parts Destroyed 2 | . . . . 2 Critical Strikes 2 | . . . . 2 Smash 2 | . . . . 2 Melee Attacks 12 | . . . . 12 Impact 12 | . . . . 12 Slashing . | . . . . . Piercing . | . . . . . Sneak Attacks . | . . . . . Combat Hostiles . | . . . . . Follow-up Attacks . | . . . . . Damage Inflicted 1456 | . 20 171 500 765 Guns 98 | . 20 78 . . Cannons 778 | . . . 462 316 Explosions 319 | . . 87 38 194 Melee 252 | . . . . 252 Ramming 9 | . . 6 . 3 Kinetic 778 | . . . 462 316 Thermal 87 | . . 87 . . Explosive 194 | . . . . 194 Electromagnetic 136 | . 20 78 38 . Impact 252 | . . . . 252 Slashing . | . . . . . Piercing . | . . . . . Highest Corruption 9 | . . . . 9 Average Corruption 9 | . . . . 9 Corruption Purged . | . . . . . Corruption Blocked . | . . . . . Effects 2 | . . . . 2 Data Loss (major) 1 | . . . . 1 Alerts 1 | . . . . 1 Overload Shots . | . . . . . Overflow Damage 85 | . . . . 85 Projectiles 5 | . . . . 5 Explosions 16 | . . . . 16 Melee 64 | . . . . 64 Knockbacks 27 | . . . 10 17 Impact . | . . . . . Kinetic 27 | . . . 10 17 Secondary . | . . . . . Self-Inflicted Damage 82 | . . 39 43 . Shots 2 | . . 1 1 . Rammed 6 | . . . . 6 Targets Rammed 8 | . . 2 . 6 Kicked . | . . . . . Crushed 2 | . . 2 . . Highest Temperature 363 | . 18 30 332 363 Average Temperature 140 | . 12 12 135 172 Received Heat Transfer 614 | . . . 99 515 Effects 5 | . . . 2 3 Energy Bleed 2 | . . . 2 . Interference 2 | . . . . 2 Matter Decay 1 | . . . . 1 Siege Activations . | . . . . . Robots Corrupted . | . . . . . Combat Hostiles . | . . . . . Parts Fried 2 | . . . . 2 Impact Corruptions 3 | . . . . 3 Robots Melted . | . . . . . Combat Hostiles . | . . . . . Parts Melted . | . . . . . Heat Transferred 50 | . . 50 . . Parts Sabotaged . | . . . . . Parts Stolen . | . . . . . Parts Stripped . | . . . . . Power Chain Reactions 1 | . . 1 . . Missiles Intercepted . | . . . . . Alert | -11 -10 -9 -8 -8 ------- Run | Jun Mat Mat Mat Gar Peak Influence 252 | . 7 128 234 252 Initial 53 | . . 2 53 51 Average 99 | . 3 45 118 206 Maximum Alert Level 1 | . . . 1 1 Low Security (%) 76 | 100 100 100 88 23 Level 1 23 | . . . 11 76 Level 2 . | . . . . . Level 3 . | . . . . . Level 4 . | . . . . . Level 5 . | . . . . . High Security . | . . . . . Max Security . | . . . . . Squads Dispatched 1 | . . 1 . . Investigation . | . . . . . Extermination . | . . . . . Reinforcement 1 | . . 1 . . Assault . | . . . . . Garrison . | . . . . . Intercept . | . . . . . Searches Triggered . | . . . . . Construction Impeded . | . . . . . Haulers Reinforced . | . . . . . Active Scanning Responses . | . . . . . Cargo Convoy Interrupts . | . . . . . Stealth | -11 -10 -9 -8 -8 --------- Run | Jun Mat Mat Mat Gar Distress Signals 1 | . . 1 . . Communications Jammed . | . . . . . Distress Signals . | . . . . . Times Spotted 44 | . 1 10 11 22 Peak Tracking Total 6 | . 1 4 3 6 Tactical Retreats 2 | . . . . 2 Traps | -11 -10 -9 -8 -8 ------- Run | Jun Mat Mat Mat Gar Traps Triggered 2 | . . 1 . 1 Indirectly . | . . . . . Trap Hack Attempts . | . . . . . Triggered . | . . . . . Disarmed . | . . . . . Reprogrammed . | . . . . . Reused . | . . . . . Traps Extracted . | . . . . . Installed . | . . . . . Triggered 1 | . . . . 1 Machines | -11 -10 -9 -8 -8 ---------- Run | Jun Mat Mat Mat Gar Machines Disabled 2 | . . 1 1 . Max in Single Turn 1 | . . 1 1 . Machines Repaired . | . . . . . Machines Sabotaged . | . . . . . Overloaded Fab Kills . | . . . . . Hacking | -11 -10 -9 -8 -8 --------- Run | Jun Mat Mat Mat Gar Machines Accessed 1 | . . . 1 . Terminals . | . . . . . Fabricators . | . . . . . Repair Stations . | . . . . . Recycling Units . | . . . . . Scanalyzers . | . . . . . Garrison Access 1 | . . . 1 . Total Hacks 2 | . . . 2 . Successful 1 | . . . 1 . Failed 1 | . . . 1 . Catastrophic . | . . . . . Database Lockouts . | . . . . . Manual . | . . . . . Terminals . | . . . . . Fabricators . | . . . . . Repair Stations . | . . . . . Recycling Units . | . . . . . Scanalyzers . | . . . . . Garrison Access 2 | . . . 2 . Terminal Hacks . | . . . . . Fabricator Hacks . | . . . . . Repair Station Hacks . | . . . . . Recycling Unit Hacks . | . . . . . Scanalyzer . | . . . . . Garrison Access Hacks 1 | . . . 1 . Unlock Access 1 | . . . 1 . Unauthorized Hacks . | . . . . . Terminals . | . . . . . Fabricators . | . . . . . Repair Stations . | . . . . . Recycling Units . | . . . . . Scanalyzers . | . . . . . Garrison Access . | . . . . . Data Cores Recovered . | . . . . . Used . | . . . . . Hacking Detections . | . . . . . Full Trace Events . | . . . . . Feedback Events . | . . . . . Feedback Blocked . | . . . . . Robot Schematics Acquired . | . . . . . Robots Built . | . . . . . Authchips . | . . . . . Time . | . . . . . Total Robot Build Rating . | . . . . . Part Schematics Acquired . | . . . . . Parts Built . | . . . . . Authchips . | . . . . . Time . | . . . . . Total Part Build Rating . | . . . . . Parts Repaired . | . . . . . Time . | . . . . . Parts Recycled . | . . . . . Recycled Matter . | . . . . . Retrieved Matter . | . . . . . Retrieved Components . | . . . . . Parts Scanalyzed . | . . . . . Part Schematics Acquired . | . . . . . Parts Damaged . | . . . . . Bothacking | -11 -10 -9 -8 -8 ------------ Run | Jun Mat Mat Mat Gar Used RIF Installer 1 | . . . . 1 Robots Hacked . | . . . . . Non-combat . | . . . . . Combat . | . . . . . Robot Hacks Applied . | . . . . . Relay Couplers Released . | . . . . . Fabnet Peak Effective % . | . . . . . Robots Rewired . | . . . . . Allies Hacked . | . . . . . Hacks Repelled . | . . . . . Allies | -11 -10 -9 -8 -8 -------- Run | Jun Mat Mat Mat Gar Total Allies . | . . . . . Largest Group . | . . . . . Highest-Rated Group . | . . . . . Highest-Rated Ally . | . . . . . Total Orders . | . . . . . Ally Attacks . | . . . . . Total Damage . | . . . . . Kills . | . . . . . Allies Corrupted . | . . . . . Allies Melted . | . . . . . Intel | -11 -10 -9 -8 -8 ------- Run | Jun Mat Mat Mat Gar Robot Analysis Total . | . . . . . Derelict Logs Recovered . | . . . . . Drone Launches . | . . . . . Drone Recoveries . | . . . . . Exploration | -11 -10 -9 -8 -8 ------------- Run | Jun Mat Mat Mat Gar Turns Passed 1878 | 135 225 511 517 490 Spaces Moved 738 | 89 137 144 190 178 Core 127 | 17 . . . 110 Treads 611 | 72 137 144 190 68 Legs . | . . . . . Wheels . | . . . . . Hover . | . . . . . Flight . | . . . . . Fastest Speed 50 | 50 160 160 240 100 Average Speed 189 | 138 160 163 240 205 Slowest Speed 450 | 160 160 240 240 450 Overloaded Moves . | . . . . . Propulsion Burnouts . | . . . . . Robots Hopped . | . . . . . Cave-ins Triggered . | . . . . . Exploration Rate (%) 15 | 5 20 14 18 21 Regions Visited 4 Branch Regions . Pre-discovered Areas . | . . . . . Known Exits Taken 1 | . . . 1 . Unknown Exits Taken 3 | 1 1 1 . . Scrap Searched . | . . . . . Spaces Dug . | . . . . . Terrain Destroyed 31 | . . 2 . 29 Melee . | . . . . . Projectile . | . . . . . AOE 31 | . . 2 . 29 Terrain Rammed . | . . . . . Walls Destroyed . | . . . . . Machines Disabled . | . . . . . Actions | -11 -10 -9 -8 -8 --------- Run | Jun Mat Mat Mat Gar Total 1109 | 100 141 409 224 235 Wait 252 | . . 240 12 . Move 734 | 88 136 143 189 178 Hop . | . . . . . Pick Up 23 | 8 2 7 6 . Fast Attach . | . . . . . Attach 17 | 4 2 4 2 5 Detach 2 | . . 1 . 1 Swap 1 | . . 1 . . Drop 9 | . . 5 1 3 Fire 40 | . 1 6 14 19 Melee 12 | . . . . 12 Ram 6 | . . . . 6 Kick . | . . . . . Crush 2 | . . 2 . . Escape Stasis 11 | . . . . 11 Rewire . | . . . . . Trap . | . . . . . Miscellaneous . | . . . . . Route ------- -11/Junkyard -10/Materials -9/Materials -8/Materials -8/Garrison History --------- Turn | Location | Event 7 | -11/Junkyard | Discovered new exit (range 15) 136 | -11/Junkyard | Entered Materials 310 | -10/Materials | Build established: Mutant 355 | -10/Materials | Discovered new exit (range 3) 361 | -10/Materials | Entered another Materials area 361 | -9/Materials | Evolved 2 slots: Utility x2 797 | -9/Materials | Discovered new exit (range 15) 872 | -9/Materials | Entered another Materials area 872 | -8/Materials | Evolved 2 slots: Power x1, Utility x1 1386 | -8/Materials | Identified exit to Garrison 1389 | -8/Materials | Entered Garrison 1397 | -8/Garrison | Assembled breached garrison interior 1657 | -8/Garrison | Lost 6 parts (2p2n2u) 1657 | -8/Garrison | Installed Relay Interface Framework 1672 | -8/Garrison | Core integrity fell below 50% 1756 | -8/Garrison | Core integrity fell below 20% 1797 | -8/Garrison | Spotted B-75 Beast 1879 | -8/Garrison | Destroyed by Y-45 Defender with Heavy Assault Rifle Last Messages --------------- as-08917 destroyed. System corrupted: IFF burst signal emitted. The unstable cave ceiling collapses. Knocked back. as-96302 destroyed. System corrupted: Substantial component data lost. Triggered Stasis Trap. A bubble of rippling energy engulfs the area. Field strength at 94. Field strength at 88. Field strength at 82. Field strength at 76. Field strength at 70. Field strength at 64. Field strength at 58. Field strength at 52. Field strength at 46. Field strength at 35. Field strength at 29. Field strength at 19. Map ----- +----------------------------------------------------+ | ?????????????????????????????????????????????????? | | ?????????????????????????????????????????????????? | | ?????????????????????????????????????????????????? | | ?????????????????????????????????????????????????? | | ?????????????????????????????????????????????????? | | ?????????????????????????????????????????????????? | | ?????????????????????????????????????????????????? | | ?????????????????????????????????????????????????? | | ?????????????????????????????????????????????????? | | ?????????????????????????????????????????????????? | | ????????????????????????? ???????????????????????? | | ????????????????????????? ???????????????????????? | | ????????????????????????? ???????????????????????? | | ????????????????????????? ???????????????????????? | | ??????????????? #???????? ???????????????????????? | | ???????????????? #??????# ???????????????????????? | | ????????????????# #????? ???????????????????????? | | ????????????????? #???? #??????????????????????? | | ?????????????????? ##? ##?????????????????????? | | ??????????????????? # ??????????????????????? | | ???????????????????# # ??????????????????????? | | ???????????????????# # # ??????????????????????? | | ????????????????????? ??????????????????????? | | ??????????????????????# #??????????????????????? | | ????????????????# ## ############???????????? | | ?????????? @ #???????????? | | ?????????? = = #???????????? | | ???????????# % = =%* Y Y #???????????? | | ???????????######%==*#########+### #???????????? | | ????????????????#*%%???????????#?# #???????????? | | ????????????????##???????????????# #???????????? | | ?????????????????????????????????# #???????????? | | ?????????????????????????????????# #???????????? | | ?????????????????????????????????# #???????????? | | ?????????????????????????????????# #???????????? | | ?????????????????????????????????# #???????????? | | ?????????????????????????????????# #???????????? | | ?????????????????????????????????# #???????????? | | ?????????????????????????????????# #???????????? | | ?????????????????????????????????# #???????????? | | ?????????????????????????????????# #???????????? | | ?????????????????????????????????# #?###???????? | | ?????????????????????????????????# ### ##??????? | | ?????????????????????????????????# ####????? | | ?????????????????????????????????# % ## ##???? | | ?????????????????????????????????# % ##### | | ?????????????????????????????????# | | ?????????????????????????????????# | | ?????????????????????????????????# | | ?????????????????????????????????##### ## #### | +----------------------------------------------------+ Best States ------------- Heat Dissipation 31 Energy Generation 19 Energy Capacity 310 Matter Stores 277 Matter Capacity 300 Sight Range 16 Terrain Scan Density 10 Armor Coverage 1200 Evasion (%) 40 Recoil Reduction 2 Item Schematics ----------------- None Robot Schematics ------------------ None Fabricated ------------ Nothing Alien Tech Used ----------------- None Achievements -------------- None Challenges ------------ None Game ------ Seed UtilityCargoSabre Manual? 0 Play Time 00:13:44 Cumulative 6.6 hours Start 2023.05.19 @ 13:54:24 End 2023.05.22 @ 20:25:48 Sessions 1 Manual Loads 0 Difficulty Rogue Special Mode None Game No. 24 Rogue 24 Adventurer 0 Explorer 0 Win Type - Total 0 Types 0/0/0/0/0/0/0/0/0 Lore% 5 Gallery% 12 Achievement% 12 Wizard Run 0 Options --------- ASCII 0 Keyboard 0 Movement Arrows Keybinds 0 Fullscreen 0 Font 16/SmallcapsGlow Map View 76x50 Tactical HUD 0 Map Filters NONE Filters NONE Steam 1 RUN: d1137963-4fdb-4d5b-b1f8-51ded0b56beb